bitfinex/quotes_BTCUSD_20251221
["timestamp","ask_amount","ask_price","bid_price","bid_amount"]
[1766333944406,0.00568,88197.0,88187.0,0.0489]
[1766333946073,0.00568,88197.0,88187.0,0.06023953]
[1766333946834,0.00568,88197.0,88187.0,0.0489]
[1766333947028,0.00568,88197.0,88187.0,0.06023953]
[1766333947733,0.49495,88201.0,88187.0,0.06023953]
[1766333947976,0.49495,88201.0,88189.0,0.06023928]
[1766333947977,0.00568,88200.0,88189.0,0.06023928]
[1766333948205,0.00568,88200.0,88189.0,0.0489]
[1766333949242,0.02720549,88197.0,88184.0,0.00568]
[1766333949443,0.000549,88189.0,88184.0,0.00568]
[1766333949647,0.31918,88189.0,88184.0,0.00568]
[1766333951178,0.31918,88189.0,88184.0,0.01701992]
[1766333951388,0.31918,88189.0,88184.0,0.00568]
[1766333953455,0.31918,88189.0,88184.0,0.01701992]
[1766333954752,0.31918,88189.0,88184.0,0.00568]
[1766333955324,0.31918,88189.0,88184.0,0.01701992]
[1766333955549,0.31918,88189.0,88184.0,0.00568]
[1766333955748,0.31918,88189.0,88184.0,0.01701992]
[1766333955907,0.31918,88189.0,88184.0,0.00568]
[1766333958239,0.49495,88190.0,88184.0,0.00568]
[1766333961399,0.00568,88194.0,88185.0,0.0489]
[1766333961822,0.00558,88194.0,88185.0,0.0489]
[1766333965316,0.00568,88202.0,88188.0,0.04865]
[1766333965521,0.31918,88198.0,88189.0,0.00568]
[1766333965744,0.31918,88197.0,88189.0,0.00568]
[1766333967133,0.49495,88193.0,88179.0,0.05999056]
[1766333967332,0.01133876,88193.0,88180.0,0.00568]
[1766333967518,0.31918,88191.0,88180.0,0.00568]
[1766333970149,0.31918,88191.0,88180.0,0.01702044]
[1766333970350,0.31918,88191.0,88180.0,0.00568]
[1766333971651,0.31918,88191.0,88180.0,0.01702044]
[1766333971855,0.01133915,88190.0,88180.0,0.00568]
[1766333971995,0.01133915,88190.0,88180.0,0.005131]
[1766333971996,0.30655,88187.0,88180.0,0.005131]
[1766333973861,0.46684,88188.0,88180.0,0.005131]
[1766333974222,0.47817941,88188.0,88180.0,0.005131]
[1766333974427,0.46684,88188.0,88180.0,0.005131]
[1766333976811,0.00568,88191.0,88180.0,0.053781]
[1766333978913,0.00568,88191.0,88182.0,0.01134018]
[1766333979113,0.00568,88191.0,88183.0,0.04865]
[1766333979336,0.00568,88191.0,88183.0,0.05999005]
[1766333979536,0.00568,88191.0,88184.0,0.04865]
[1766333979752,0.00568,88191.0,88184.0,0.05998992]
[1766333979959,0.49626,88204.0,88187.0,0.04352]
[1766333980170,0.02450965,88199.0,88189.0,0.04352]
[1766333980372,0.02450965,88199.0,88190.0,0.01133915]
[1766333980689,0.01133709,88206.0,88189.0,0.05485928]
[1766333980690,0.00568,88206.0,88193.0,0.01133876]
[1766333980894,0.00568,88206.0,88195.0,0.01902]
[1766333981982,0.00035803,88208.0,88195.0,0.01902]
[1766333981983,0.00035803,88208.0,88197.0,0.01902]
[1766333982214,0.00035803,88208.0,88198.0,0.01902]
[1766333982589,0.00035803,88208.0,88198.0,0.03035812]
[1766333982746,0.00035803,88208.0,88199.0,0.01133799]
[1766333982954,0.00035803,88208.0,88200.0,0.01133786]
[1766333983157,0.00035803,88208.0,88200.0,0.01902]
[1766333986399,0.00024733,88203.0,88200.0,0.01902]
[1766333989253,0.00024733,88203.0,88200.0,0.018471]
[1766333991754,0.00024733,88203.0,88194.0,0.02415]
[1766333991959,0.33579733,88203.0,88194.0,0.00568]
[1766333996128,0.49626,88202.0,88194.0,0.00568]
[1766333996287,0.33555,88198.0,88192.0,0.00568]
[1766333996487,0.33555,88196.0,88192.0,0.00568]
[1766333997645,0.33535,88196.0,88192.0,0.00568]
[1766333998591,0.49626,88197.0,88192.0,0.00568]
[1766333998794,0.49650733,88203.0,88192.0,0.00568]
[1766333999652,0.33555,88202.0,88192.0,0.00568]
[1766334002621,0.33555,88202.0,88190.0,0.01133915]
[1766334002814,0.33555,88202.0,88191.0,0.00568]
[1766334005943,0.33555,88202.0,88192.0,0.01133889]
[1766334006164,0.00035803,88208.0,88202.0,0.000549]
[1766334006363,0.00603803,88208.0,88202.0,0.000549]
[1766334006571,0.00603803,88208.0,88200.0,0.02335]
[1766334012735,0.00035803,88208.0,88200.0,0.02335]
[1766334013318,0.01169487,88208.0,88200.0,0.02335]
[1766334013487,0.00035803,88208.0,88200.0,0.02335]
[1766334014545,0.01721671,88209.0,88200.0,0.02335]
[1766334014546,0.0002,88209.0,88208.0,0.000358]
[1766334014744,0.00568,88212.0,88209.0,0.0002]
[1766334014978,0.00576523,88212.0,88209.0,0.0002]
[1766334015185,0.0002473,88211.0,88203.0,0.02276748]
[1766334016152,3e-07,88211.0,88203.0,0.02276748]
[1766334016370,3e-07,88211.0,88203.0,0.01133748]
[1766334016575,3e-07,88211.0,88204.0,0.01143]
[1766334019568,0.01133542,88219.0,88203.0,0.01701748]
[1766334019569,0.0306456,88237.0,88221.0,0.05667571]
[1766334019771,0.31991,88241.0,88232.0,0.02720549]
[1766334020383,0.00588,88240.0,88232.0,0.02720549]
[1766334022059,8.519e-05,88236.0,88232.0,0.02720549]
[1766334022285,8.519e-05,88236.0,88233.0,0.01133362]
[1766334022446,8.519e-05,88236.0,88232.0,0.03853924]
[1766334022650,8.519e-05,88236.0,88233.0,0.01133362]
[1766334022826,8.519e-05,88236.0,88234.0,0.05666749]
[1766334023023,8.519e-05,88236.0,88233.0,0.06800174]
[1766334023440,0.0002,88240.0,88237.0,0.01133311]
[1766334023640,0.0002,88241.0,88234.0,0.02493368]
[1766334023641,0.0002,88241.0,88234.0,0.01133349]
[1766334024263,0.0002,88241.0,88235.0,0.01133337]
[1766334024723,0.0002,88241.0,88234.0,0.01133349]
[1766334024881,0.0002,88246.0,88234.0,0.01133349]
[1766334024882,0.0002,88246.0,88241.0,0.000152]
[1766334025084,0.0002,88249.0,88239.0,0.02493227]
[1766334025312,0.0002,88249.0,88246.0,0.02720549]
[1766334025509,0.0002,88249.0,88246.0,0.02680849]
[1766334025708,0.00111242,88247.0,88246.0,0.02680849]
[1766334030480,0.0002,88249.0,88247.0,0.000549]
[1766334030655,0.0002,88249.0,88246.0,0.02680849]
[1766334030864,0.00489966,88253.0,88246.0,0.03814044]
[1766334031063,0.00489966,88253.0,88249.0,0.01133157]
[1766334031290,0.00489966,88253.0,88250.0,0.01133144]
[1766334031463,0.00489966,88253.0,88246.0,0.03814044]
[1766334031464,0.0002,88264.0,88257.0,0.0566526]
[1766334031669,0.0002,88264.0,88261.0,0.02720549]
[1766334031670,0.00029736,88264.0,88261.0,0.02720549]
[1766334032354,0.00029736,88264.0,88236.0,0.0857986]
[1766334032355,0.00029736,88264.0,88253.0,0.01133105]
[1766334032553,0.00029736,88264.0,88260.0,0.02720549]
[1766334033825,0.00029736,88264.0,88260.0,0.02665549]
[1766334035910,0.00568,88270.0,88264.0,0.000297]
[1766334036433,0.00568,88270.0,88260.0,0.02665549]
[1766334036750,2.35e-06,88261.0,88260.0,0.02665549]
[1766334039314,2.35e-06,88261.0,88257.0,0.07366281]
[1766334039315,2.35e-06,88261.0,88257.0,0.00568]
[1766334039523,0.3189,88270.0,88260.0,0.02720549]
[1766334039884,0.00568,88270.0,88260.0,0.02720549]
[1766334040311,0.01700887,88270.0,88260.0,0.02720549]
[1766334040693,0.00568,88270.0,88260.0,0.02720549]
[1766334040876,0.011329,88269.0,88260.0,0.02720549]
[1766334041335,0.01132849,88273.0,88260.0,0.02720549]
[1766334041336,0.77361,88282.0,88260.0,0.02720549]
[1766334041509,0.46039,88282.0,88274.0,0.02720549]
[1766334041753,0.3189,88283.0,88274.0,0.02720549]
[1766334041754,0.00568,88283.0,88274.0,0.02720549]
[1766334042731,0.0002,88286.0,88274.0,0.02720549]
[1766334042732,0.0002,88286.0,88283.0,0.001099]
[1766334042930,0.0002,88286.0,88281.0,0.01700746]
[1766334043889,0.0002,88286.0,88281.0,0.00568]
[1766334044477,0.0002,88286.0,88281.0,0.01700746]
[1766334044911,0.0002,88286.0,88281.0,0.00568]
[1766334047743,0.31322,88294.0,88281.0,0.00568]
[1766334047966,0.32465309,88294.0,88281.0,0.00568]
[1766334048374,0.3133273,88294.0,88281.0,0.00568]
[1766334048580,0.3133273,88294.0,88281.0,0.01700746]
[1766334048755,0.3133273,88294.0,88281.0,0.00568]
[1766334048979,0.3133273,88294.0,88281.0,0.01700746]
[1766334049233,0.46039,88293.0,88281.0,0.00548]
[1766334049418,0.46039,88289.0,88281.0,0.00548]
[1766334049647,0.31322,88288.0,88281.0,0.00548]
[1766334049856,0.01132387,88309.0,88294.0,0.29223579]
[1766334050045,0.00568,88304.0,88296.0,0.01132554]
[1766334050245,0.00568,88304.0,88295.0,0.01132566]
[1766334050469,3.8e-06,88297.0,88295.0,0.01132566]
[1766334050627,0.00568,88304.0,88295.0,0.28994566]
[1766334051040,0.00568,88304.0,88296.0,0.01132554]
[1766334051245,0.00568,88304.0,88297.0,0.01132541]
[1766334051589,0.00568,88304.0,88298.0,0.01132528]
[1766334051731,0.00568,88304.0,88297.0,0.28878541]
[1766334052380,0.32490145,88309.0,88297.0,0.27746]
[1766334052913,0.06794401,88308.0,88289.0,0.01132643]
[1766334053202,0.00035758,88309.0,88287.0,0.00568]
[1766334053203,0.31322,88293.0,88287.0,0.00568]
[1766334053421,0.31322,88293.0,88288.0,0.02720549]
[1766334053829,0.01132528,88298.0,88276.0,0.0113281]
[1766334053830,0.05662642,88298.0,88276.0,0.0113281]
[1766334053959,0.31322,88289.0,88277.0,0.28649797]
[1766334054165,0.46039,88290.0,88281.0,0.01132746]
[1766334054583,0.46039,88290.0,88282.0,0.01132733]
[1766334054787,0.3189,88294.0,88282.0,0.01132733]
[1766334055979,0.3189,88294.0,88281.0,0.01132746]
[1766334056182,0.31322,88293.0,88281.0,0.01132746]
[1766334056615,0.31322,88293.0,88282.0,0.01132733]
[1766334056856,0.31322,88293.0,88278.0,0.00568]
[1766334057064,0.31322,88293.0,88270.0,0.4633373]
[1766334057065,0.31322,88281.0,88267.0,0.28316926]
[1766334057264,0.31322,88278.0,88271.0,0.00568]
[1766334057419,0.31322,88278.0,88271.0,0.00558]
[1766334057870,0.31322,88278.0,88271.0,0.01690874]
[1766334058045,0.31322,88278.0,88271.0,0.00558]
[1766334058286,0.31322,88278.0,88271.0,0.01701604]
[1766334058504,0.00568,88283.0,88272.0,0.01132862]
[1766334058691,0.31322,88282.0,88274.0,0.01132836]
[1766334058839,0.31322,88282.0,88274.0,0.06797003]
[1766334059248,0.31322,88282.0,88276.0,0.0113281]
[1766334059616,0.31322,88282.0,88271.0,0.0001073]
[1766334059617,0.31322,88281.0,88271.0,0.0001073]
[1766334059832,0.00568,88283.0,88271.0,0.0001073]
[1766334059833,0.46039,88280.0,88271.0,0.0001073]
[1766334060035,0.31322,88277.0,88271.0,0.0001073]
[1766334060238,0.31322,88276.0,88271.0,0.0001073]
[1766334060980,0.00568,88283.0,88274.0,0.01132836]
[1766334060981,0.31322,88281.0,88274.0,0.01132836]
[1766334061191,0.31322,88281.0,88276.0,0.000549]
[1766334061395,0.01132643,88289.0,88281.0,0.00055]
[1766334061396,0.00568,88282.0,88281.0,0.00055]
[1766334061644,0.31322,88288.0,88281.0,0.00055]
[1766334061645,0.00568,88284.0,88281.0,0.00055]
[1766334062054,0.00568,88284.0,88277.0,0.01132797]
[1766334062207,0.00568,88284.0,88278.0,0.01132785]
[1766334063189,0.31322,88288.0,88278.0,0.01132785]
[1766334063190,0.31322,88288.0,88281.0,0.01132746]
[1766334063390,0.31322,88288.0,88278.0,0.06796709]
[1766334063391,0.00568,88287.0,88284.0,0.000549]
[1766334063568,0.00568,88287.0,88279.0,0.01132772]
[1766334063782,0.31312,88288.0,88282.0,0.01132733]
[1766334063982,0.31312,88288.0,88281.0,0.01132746]
[1766334064619,0.31312,88288.0,88279.0,0.01132772]
[1766334065030,0.31312,88288.0,88280.0,0.01132759]
[1766334065232,0.31312,88288.0,88279.0,0.01132772]
[1766334066075,0.31312,88288.0,88278.0,0.01132785]
[1766334066279,0.31312,88288.0,88279.0,0.01132772]
[1766334066639,0.312571,88288.0,88282.0,0.01132733]
[1766334066838,0.312571,88288.0,88280.0,0.06796556]
[1766334066839,0.46827,88296.0,88284.0,0.06796248]
[1766334067065,0.46827,88296.0,88285.0,0.01132695]
[1766334067314,0.00568,88295.0,88285.0,0.01132695]
[1766334067644,0.00568,88295.0,88283.0,0.0113272]
[1766334068068,0.46827,88296.0,88283.0,0.0113272]
[1766334068069,0.00568,88294.0,88284.0,0.01132708]
[1766334068268,0.00568,88294.0,88286.0,0.01132682]
[1766334068443,0.00568,88294.0,88284.0,0.01132708]
[1766334068665,0.2959,88294.0,88285.0,0.01132695]
[1766334068871,0.29535,88294.0,88285.0,0.01132695]
[1766334069073,0.29022,88294.0,88285.0,0.01132695]
[1766334069271,0.00568,88296.0,88286.0,0.26082]
[1766334069490,0.2959,88296.0,88287.0,0.01132669]
[1766334069676,0.2959,88296.0,88286.0,0.27214682]
[1766334069838,0.2959,88296.0,88286.0,0.01132682]
[1766334070036,0.29022,88294.0,88284.0,0.01132708]
[1766334070240,0.29022,88283.0,88276.0,0.00568]
[1766334070438,0.46827,88283.0,88276.0,0.00568]
[1766334070770,0.01132695,88285.0,88265.0,0.04367929]
[1766334070771,0.3015481,88276.0,88265.0,0.04367929]
[1766334070969,0.29022,88270.0,88266.0,0.00568]
[1766334071185,0.29022,88270.0,88266.0,0.00558]
[1766334071394,0.29022,88270.0,88266.0,0.01690939]
[1766334071594,0.29022,88270.0,88266.0,0.00558]
[1766334071799,0.46827,88271.0,88266.0,0.00558]
[1766334072702,0.46827,88271.0,88266.0,0.01690939]
[1766334073086,0.29022,88275.0,88267.0,0.01132926]
[1766334073712,0.29022,88275.0,88266.0,0.01690939]
[1766334073920,0.29022,88275.0,88267.0,0.01132926]
[1766334074983,0.29022,88275.0,88266.0,0.01690939]
[1766334075460,0.46827,88273.0,88266.0,0.00558]
[1766334075671,0.29022,88272.0,88266.0,0.00558]
[1766334076808,0.29022,88265.0,88257.0,0.01133054]
[1766334077013,0.29022,88265.0,88257.0,0.00577736]
[1766334077483,0.46827,88267.0,88263.0,0.01132977]
[1766334077685,0.00568,88273.0,88267.0,0.01132926]
[1766334077686,0.2959,88273.0,88267.0,0.01132926]
[1766334077890,0.0306456,88295.0,88263.0,0.01132977]
[1766334077891,0.01133093,88284.0,88274.0,0.01132836]
[1766334078023,0.01133093,88284.0,88276.0,0.0113281]
[1766334078222,0.01132592,88293.0,88280.0,0.01132759]
[1766334078223,0.29022,88293.0,88280.0,0.01132759]
[1766334078443,0.29022,88293.0,88276.0,0.38524805]
[1766334078444,0.00568,88290.0,88278.0,0.01132785]
[1766334078648,0.2959,88290.0,88276.0,0.31728]
[1766334078849,0.29022,88288.0,88276.0,0.0113281]
[1766334079074,0.29022,88288.0,88274.0,0.00568]
[1766334079273,0.30154656,88288.0,88274.0,0.00568]
[1766334079452,0.30154656,88288.0,88274.0,0.01700836]
[1766334079453,0.29022,88288.0,88274.0,0.01700836]
[1766334079685,0.29022,88288.0,88275.0,0.01132823]
[1766334079883,0.29022,88287.0,88275.0,0.01132823]
[1766334080200,0.29022,88287.0,88275.0,0.06796927]
[1766334080541,0.29022,88287.0,88276.0,0.0113281]
[1766334081121,0.29022,88287.0,88277.0,0.01132797]
[1766334082044,0.000549,88277.0,88274.0,0.00568]
[1766334082255,0.29022,88284.0,88275.0,0.01132823]
[1766334082394,0.29022,88284.0,88274.0,0.01700836]
[1766334082593,0.29022,88284.0,88275.0,0.01132823]
[1766334083105,0.29022,88284.0,88274.0,0.01700836]
[1766334083307,0.29022,88284.0,88274.0,0.00568]
[1766334083731,0.29022,88283.0,88274.0,0.00568]
[1766334084788,0.29022,88289.0,88277.0,0.2988]
[1766334084987,0.29022,88288.0,88277.0,0.2988]
[1766334085199,0.29022,88288.0,88279.0,0.01132772]
[1766334085401,0.29022,88288.0,88278.0,0.01132785]
[1766334085739,0.29022,88288.0,88279.0,0.01132772]
[1766334086168,0.29022,88288.0,88278.0,0.01132785]
[1766334086490,0.29022,88288.0,88279.0,0.01132772]
[1766334086890,0.29022,88288.0,88280.0,0.01132759]
[1766334087288,0.29022,88288.0,88281.0,0.01132746]
[1766334087491,0.46827,88289.0,88281.0,0.01132746]
[1766334087698,0.46827,88289.0,88279.0,0.01132772]
[1766334087699,0.723,88299.0,88289.0,0.05663219]
[1766334087871,0.723,88299.0,88288.0,0.01132656]
[1766334087872,0.72868,88299.0,88290.0,0.01132631]
[1766334088443,0.72868,88299.0,88288.0,0.06795909]
[1766334088444,0.72868,88299.0,88288.0,0.01132656]
[1766334088639,0.72868,88299.0,88283.0,0.0113272]
[1766334088640,0.43246,88297.0,88283.0,0.0113272]
[1766334088791,0.43246,88297.0,88286.0,0.01132682]
[1766334088792,0.29054,88296.0,88286.0,0.01132682]
[1766334088975,0.29054,88296.0,88283.0,0.0113272]
[1766334088976,0.29054,88296.0,88283.0,0.05663604]
[1766334089180,0.00035764,88297.0,88274.0,0.02265608]
[1766334089181,0.000549,88283.0,88274.0,0.02265608]
[1766334089384,0.000549,88283.0,88275.0,0.00568]
[1766334089385,0.29054,88283.0,88275.0,0.00568]
[1766334089586,0.29054,88283.0,88276.0,0.0113281]
[1766334089804,0.29054,88283.0,88275.0,0.00568]
[1766334089805,0.29054,88283.0,88275.0,0.01700823]
[1766334089994,0.29054,88283.0,88275.0,0.07364938]
[1766334090445,0.43246,88285.0,88275.0,0.07364938]
[1766334090644,0.43246,88285.0,88277.0,0.01132797]
[1766334091055,0.43246,88285.0,88278.0,0.01132785]
[1766334091378,0.43246,88285.0,88277.0,0.01132797]
[1766334091558,0.43246,88285.0,88278.0,0.01132785]
[1766334092851,0.01132528,88298.0,88279.0,0.01132772]
[1766334093048,0.00568,88296.0,88283.0,0.0113272]
[1766334093224,0.43246,88295.0,88283.0,0.0113272]
[1766334093425,0.29054,88294.0,88283.0,0.0113272]
[1766334093865,0.29054,88293.0,88283.0,0.0113272]
[1766334094490,0.29054,88293.0,88281.0,0.01132746]
[1766334094694,0.29054,88293.0,88282.0,0.01132733]
[1766334095022,0.29054,88293.0,88281.0,0.01132746]
[1766334095153,0.27414,88292.0,88280.0,0.01132759]
[1766334095356,0.00568,88291.0,88280.0,0.01132759]
[1766334095978,0.43077,88290.0,88279.0,0.01132772]
[1766334096179,0.70491,88290.0,88280.0,0.01132759]
[1766334098307,0.01132554,88296.0,88282.0,0.25534]
[1766334098451,0.00568,88293.0,88282.0,0.25534]
[1766334098763,0.27982,88293.0,88282.0,0.25534]
[1766334099859,0.27982,88293.0,88282.0,0.26666733]
[1766334100258,0.27982,88293.0,88283.0,0.0113272]
[1766334101304,0.00568,88293.0,88283.0,0.0113272]
[1766334101474,0.00035764,88297.0,88283.0,0.0113272]
[1766334101475,0.27982,88296.0,88286.0,0.01132682]
[1766334101669,0.27982,88296.0,88287.0,0.01132669]
[1766334101882,0.27982,88296.0,88286.0,0.01132682]
[1766334102092,0.43077,88295.0,88282.0,0.01132733]
[1766334102365,0.00568,88296.0,88284.0,0.25699708]
[1766334102589,0.00568,88296.0,88285.0,0.25699695]
[1766334102802,0.00035764,88297.0,88285.0,0.25699695]
[1766334102803,0.00035764,88297.0,88287.0,0.24567]
[1766334102977,0.00035764,88297.0,88287.0,0.25699669]
[1766334103195,0.00035764,88297.0,88287.0,0.24567]
[1766334103803,0.00035764,88297.0,88287.0,0.25699669]
[1766334104730,0.00035764,88297.0,88288.0,0.01132656]
[1766334104907,0.00035764,88297.0,88287.0,0.25699669]
[1766334105088,0.00035764,88297.0,88288.0,0.01132656]
[1766334105286,0.00035764,88297.0,88287.0,0.25699669]
[1766334106016,0.27439062,88305.0,88294.0,0.01132579]
[1766334106178,0.00568,88304.0,88298.0,0.01132528]
[1766334106373,0.00035781,88305.0,88302.0,0.01132477]
[1766334106586,0.43077,88315.0,88302.0,0.01132477]
[1766334106587,0.00568,88311.0,88302.0,0.01132477]
[1766334106790,0.00568,88311.0,88300.0,0.24704502]
[1766334106791,0.00568,88311.0,88300.0,0.76661902]
[1766334107011,0.00568,88311.0,88303.0,0.01132464]
[1766334107230,0.00568,88311.0,88303.0,0.24480464]
[1766334107432,0.01132182,88325.0,88310.0,0.01132374]
[1766334107607,0.27414,88321.0,88311.0,0.01700361]
[1766334108006,0.00024687,88313.0,88311.0,0.00568]
[1766334109931,0.067928,88329.0,88311.0,0.01700361]
[1766334110135,0.00568,88328.0,88317.0,0.01132284]
[1766334110362,0.000549,88317.0,88311.0,0.00568]
[1766334110534,0.27414,88320.0,88313.0,0.01132336]
[1766334110754,0.00568,88328.0,88311.0,0.00568]
[1766334110755,0.70491,88319.0,88311.0,0.00568]
[1766334110932,0.70491,88319.0,88311.0,0.01700361]
[1766334111140,0.70491,88319.0,88302.0,0.22667]
[1766334111141,0.01132374,88310.0,88299.0,0.0340211]
[1766334111343,0.27414,88304.0,88299.0,2.1e-06]
[1766334111566,0.27414,88304.0,88297.0,0.00568]
[1766334112373,0.27414,88304.0,88298.0,0.01132528]
[1766334112780,0.27414,88310.0,88298.0,0.01132528]
[1766334113146,0.27414,88310.0,88297.0,0.01700541]
[1766334113353,0.27414,88310.0,88297.0,0.00568]
[1766334113554,0.27414,88310.0,88297.0,0.01700541]
[1766334114152,0.27414,88310.0,88297.0,0.00568]
[1766334114856,0.01132297,88316.0,88302.0,0.25184]
[1766334115018,0.01132336,88313.0,88302.0,0.25184]
[1766334115222,0.28546323,88314.0,88302.0,0.25184]
[1766334115583,0.01132361,88311.0,88302.0,0.25184]
[1766334115785,0.28546361,88311.0,88297.0,0.00568]
[1766334116005,0.27414,88311.0,88297.0,0.26683541]
[1766334116250,0.27414,88311.0,88298.0,0.01132528]
[1766334116671,0.0170031,88315.0,88299.0,0.01132515]
[1766334116871,0.27414,88313.0,88300.0,0.01132502]
[1766334117516,0.27414,88313.0,88301.0,0.0113249]
[1766334117719,0.27414,88313.0,88303.0,0.01132464]
[1766334117921,0.00568,88313.0,88303.0,0.01132464]
[1766334118127,0.00568,88313.0,88304.0,0.01132451]
[1766334118345,0.00568,88313.0,88303.0,0.01132464]
[1766334118558,0.00568,88313.0,88303.0,0.24963]
[1766334118758,0.004983,88313.0,88303.0,0.24963]
[1766334118936,0.004983,88313.0,88303.0,0.26095464]
[1766334119922,0.004983,88313.0,88303.0,0.24963]
[1766334120127,0.279123,88313.0,88303.0,0.24908]
[1766334120750,0.004983,88313.0,88303.0,0.24908]
[1766334121085,0.004983,88313.0,88303.0,0.06230282]
[1766334121287,0.27414,88317.0,88307.0,0.01132413]
[1766334121288,0.00568,88317.0,88307.0,0.01132413]
[1766334121688,0.00568,88317.0,88306.0,0.01132425]
[1766334122152,0.00568,88317.0,88307.0,0.2302]
[1766334122357,0.00568,88317.0,88307.0,0.24152413]
[1766334123191,0.00568,88317.0,88307.0,0.2302]
[1766334126103,0.26126,88316.0,88303.0,0.00568]
[1766334126313,0.26126,88316.0,88304.0,0.2213]
[1766334127141,0.00568,88317.0,88305.0,0.01132438]
[1766334127301,0.00568,88317.0,88305.0,0.23090438]
[1766334127477,0.26694,88317.0,88305.0,0.23090438]
[1766334128117,0.26694,88317.0,88306.0,0.01132425]
[1766334128314,0.26694,88317.0,88305.0,0.23090438]
[1766334128518,0.00568,88317.0,88307.0,0.21735]
[1766334128719,0.00568,88317.0,88309.0,0.21735]
[1766334128918,0.00592684,88321.0,88309.0,0.21735]
[1766334129130,0.00592684,88321.0,88308.0,0.017004]
[1766334129131,3.92e-06,88335.0,88314.0,0.01132323]
[1766334129339,0.2429,88356.0,88329.0,0.175]
[1766334129340,3.92e-06,88338.0,88329.0,0.175]
[1766334129533,3.92e-06,88338.0,88321.0,0.00055]
[1766334129534,3.92e-06,88338.0,88330.0,0.00568]
[1766334129535,0.01132054,88335.0,88330.0,0.00568]
[1766334129757,3.92e-06,88338.0,88317.0,0.01132284]
[1766334129758,0.36783,88329.0,88328.0,0.00568]
[1766334129949,0.36783,88329.0,88301.0,0.01358988]
[1766334129950,0.62909,88329.0,88324.0,0.00568]
[1766334130487,0.26126,88326.0,88314.0,9.31e-05]
[1766334130647,0.26126,88323.0,88314.0,9.31e-05]
[1766334130830,0.26126,88323.0,88315.0,0.00568]
[1766334131176,0.26126,88323.0,88314.0,0.01141633]
[1766334131372,0.26126,88323.0,88316.0,0.01700297]
[1766334131568,0.260711,88323.0,88316.0,0.01700297]
[1766334131915,0.260711,88323.0,88317.0,0.00568]
[1766334132352,0.260711,88323.0,88317.0,0.005131]
[1766334132549,0.36783,88324.0,88317.0,0.005131]
[1766334132730,0.36783,88324.0,88318.0,0.00568]
[1766334132941,0.36783,88324.0,88319.0,0.00568]
[1766334134158,0.26126,88326.0,88316.0,0.01132297]
[1766334134402,0.26126,88326.0,88320.0,0.00568]
[1766334135132,0.260711,88326.0,88320.0,0.00568]
[1766334135447,0.260711,88326.0,88321.0,0.0028]
[1766334135991,0.260711,88326.0,88321.0,0.002251]
[1766334137126,0.260711,88326.0,88321.0,0.00568]
[1766334137288,0.260711,88326.0,88314.0,0.01141633]
[1766334137289,0.26126,88320.0,88314.0,9.31e-05]
[1766334137490,0.46260293,88331.0,88315.0,0.00568]
[1766334137491,0.62909,88319.0,88315.0,0.00568]
[1766334139397,0.01132156,88327.0,88315.0,0.00568]
[1766334139611,0.62909,88326.0,88315.0,0.00568]
[1766334139834,0.62909,88326.0,88316.0,0.00568]
[1766334140066,0.26126,88324.0,88316.0,0.00568]
[1766334140240,0.26126,88323.0,88316.0,0.00568]
[1766334141243,0.01132169,88326.0,88320.0,3.0]
[1766334141244,0.26126,88321.0,88320.0,3.0]
[1766334143391,0.62909,88321.0,88320.0,3.0]
[1766334143840,0.62909,88321.0,88320.0,1.07441322]
[1766334144275,0.26126,88328.0,88321.0,0.000549]
[1766334144478,0.01132169,88326.0,88321.0,0.000549]
[1766334144749,0.26126,88326.0,88320.0,1.07441322]
[1766334145051,0.27258169,88326.0,88320.0,1.07441322]
[1766334145469,0.26126,88326.0,88320.0,1.07441322]
[1766334145825,0.30871182,88325.0,88320.0,1.07441322]
[1766334146025,0.29739,88324.0,88320.0,1.07441322]
[1766334148634,0.30871195,88324.0,88320.0,1.07441322]
[1766334148838,0.29739,88323.0,88320.0,1.07441322]
[1766334149932,0.296841,88323.0,88320.0,1.07441322]
[1766334154272,0.296841,88323.0,88320.0,1.07386422]
[1766334154471,0.296841,88323.0,88320.0,0.31561422]
[1766334156838,0.296841,88323.0,88314.0,3.1e-06]
[1766334156839,0.3133,88316.0,88314.0,3.1e-06]
[1766334157151,0.3133,88316.0,88294.0,0.01132348]
[1766334157152,0.03852782,88321.0,88295.0,0.00558]
[1766334157153,0.3133,88304.0,88295.0,0.00558]
[1766334157298,0.01132464,88303.0,88295.0,0.00568719]
[1766334157493,0.32462451,88304.0,88295.0,0.00568719]
[1766334157494,0.3133,88304.0,88295.0,0.00568719]
[1766334157770,0.312751,88304.0,88295.0,0.00568719]
[1766334157909,0.017004,88308.0,88295.0,0.37785719]
[1766334158108,0.00568,88308.0,88295.0,0.37785719]
[1766334158445,0.22645296,88319.0,88295.0,0.37785719]
[1766334158446,0.0001,88314.0,88308.0,0.00055]
[1766334158680,0.0001,88314.0,88301.0,0.37217]
[1766334158681,0.00568,88313.0,88301.0,0.3834949]
[1766334158882,0.0001,88314.0,88302.0,0.38349477]
[1766334159173,0.0001,88314.0,88303.0,0.37217]
[1766334161211,0.0001,88314.0,88303.0,0.38349464]
[1766334161613,0.0001,88314.0,88303.0,0.37217]
[1766334164315,0.0001,88314.0,88304.0,0.37217]
[1766334165408,0.0001,88314.0,88306.0,0.37217]
[1766334165596,0.00404081,88318.0,88310.0,0.67116]
[1766334165795,0.00404081,88318.0,88310.0,0.68248374]
[1766334166196,0.00404081,88318.0,88310.0,0.67116]
[1766334166398,0.01132195,88324.0,88313.0,0.37217]
[1766334166639,0.00568,88322.0,88314.0,0.37217]
[1766334168315,0.00568,88322.0,88315.0,0.29899]
[1766334168515,0.00568,88322.0,88312.0,0.01132348]
[1766334168516,0.00568,88324.0,88319.0,0.37217]
[1766334168668,0.00568,88326.0,88319.0,0.37217]
[1766334168870,0.01132143,88328.0,88319.0,0.37217]
[1766334169171,0.00568,88327.0,88319.0,0.67116]
[1766334169368,0.00568,88327.0,88319.0,0.37217]
[1766334172144,0.01700156,88327.0,88314.0,0.30467]
[1766334172320,0.000549,88319.0,88314.0,0.00568]
[1766334172620,0.33030156,88327.0,88315.0,0.29899]
[1766334172821,0.33030156,88327.0,88315.0,0.67116]
[1766334173024,0.31898,88327.0,88315.0,0.37217]